[Event "Lithuanian Chess League 2021"]
[Site "Various cities"]
[Date "2021.05.15"]
[Round "6.1"]
[White "Stremavicius, Titas"]
[Black "Stauskas, Lukas"]
[Result "1/2-1/2"]
[WhiteElo "2484"]
[BlackElo "2316"]
[PlyCount "81"]
[TimeControl "90/40+30:0"]
[WhiteClock "0:18:13"]
[BlackClock "0:01:12"]

1. c4 {[%emt 0:00:01]} e5 {[%emt 0:00:09]} 2. Nc3 {[%emt 0:00:17]} Nc6 {[%emt
0:00:14]} 3. e3 {[%emt 0:02:54]} Nf6 {[%emt 0:00:44]} 4. Nf3 {[%emt 0:00:10]}
Bb4 {[%emt 0:00:53]} 5. Qc2 {[%emt 0:00:07]} a5 {[%emt 0:00:10]} 6. a3 {[%emt
0:04:49]} Bc5 {[%emt 0:01:20]} 7. b3 {[%emt 0:01:30]} O-O {[%emt 0:01:31]} 8.
Bb2 {[%emt 0:00:25]} Re8 {[%emt 0:01:33]} 9. h4 {[%emt 0:16:30]} d6 {[%emt 0:
16:05]} 10. Bd3 {[%emt 0:04:40]} h6 {[%emt 0:08:39]} 11. Ne4 {[%emt 0:01:57]}
Nxe4 {[%emt 0:07:57]} 12. Bxe4 {[%emt 0:00:02]} Be6 {[%emt 0:00:09]} 13. Rc1 {
[%emt 0:17:12]} Qd7 {[%emt 0:09:37]} 14. O-O {[%emt 0:05:55]} Bb6 {[%emt 0:07:
52]} 15. d4 {[%emt 0:08:10]} exd4 {[%emt 0:03:17]} 16. exd4 {[%emt 0:00:06]} d5
{[%emt 0:00:09]} 17. Bh7+ {[%emt 0:00:04]} Kh8 {[%emt 0:00:06]} 18. c5 {[%emt
0:00:05]} Ba7 {[%emt 0:00:05]} 19. Bd3 {[%emt 0:00:05]} Bg4 {[%emt 0:01:26]}
20. Nh2 {[%emt 0:00:09]} Ne7 {[%emt 0:11:51]} 21. Nxg4 {[%emt 0:09:33]} Qxg4 {
[%emt 0:00:07]} 22. g3 {[%emt 0:00:06]} Ng8 {[%emt 0:07:30]} 23. Kg2 {[%emt 0:
04:32]} Nf6 {[%emt 0:01:36]} 24. Qd1 {[%emt 0:02:39]} Qxd1 {[%emt 0:04:12]} 25.
Rcxd1 {[%emt 0:01:34]} c6 {[%emt 0:00:18]} 26. Rfe1 {[%emt 0:05:18]} Kg8 {
[%emt 0:00:22]} 27. Rxe8+ {[%emt 0:02:22]} Nxe8 {[%emt 0:00:08]} 28. g4 {[%emt
0:01:59]} Bb8 {[%emt 0:01:22]} 29. Bc1 {[%emt 0:03:07]} Bc7 {[%emt 0:04:23]}
30. Re1 {[%emt 0:02:20]} Kf8 {[%emt 0:00:42]} 31. f4 {[%emt 0:01:21]} Nf6 {
[%emt 0:04:02]} 32. Kf3 {[%emt 0:00:14]} Re8 {[%emt 0:00:30]} 33. Rxe8+ {[%emt
0:02:23]} Nxe8 {[%emt 0:00:07]} 34. b4 {[%emt 0:04:00]} axb4 {[%emt 0:00:28]}
35. axb4 {[%emt 0:00:01]} b5 {[%emt 0:02:45]} 36. h5 {[%emt 0:00:50]} Nf6 {
[%emt 0:01:11]} 37. Be3 {[%emt 0:00:42]} Ke8 {[%emt 0:01:42]} 38. Bf2 {[%emt 0:
00:35]} Bd8 {[%emt 0:01:06]} 39. Bf5 {[%emt 0:00:31]} Bc7 {[%emt 0:01:40]} 40.
Be1 {[%emt 0:00:27]} Bd8 {[%emt 0:01:29]} 41. Bd2 {[%emt 0:12:55]} 1/2-1/2

[Event "Lithuanian Chess League 2021"]
[Site "Various cities"]
[Date "2021.05.15"]
[Round "6.2"]
[White "Vardanyan, Aras"]
[Black "Juksta, Karolis"]
[Result "1-0"]
[WhiteElo "2197"]
[BlackElo "2437"]
[PlyCount "87"]
[TimeControl "90/40+30:0"]
[WhiteClock "1:02:38"]
[BlackClock "0:28:58"]

1. e4 {[%emt 0:00:00]} e6 {[%emt 0:00:18]} 2. d4 {[%emt 0:00:41]} d5 {[%emt 0:
00:11]} 3. e5 {[%emt 0:00:05]} c5 {[%emt 0:00:36]} 4. c3 {[%emt 0:00:05]} Ne7 {
[%emt 0:01:50]} 5. Nf3 {[%emt 0:02:40]} Nec6 {[%emt 0:00:23]} 6. Bd3 {[%emt 0:
03:12]} b6 {[%emt 0:01:26]} 7. h4 {[%emt 0:07:21]} Ba6 {[%emt 0:08:42]} 8. Bxa6
{[%emt 0:03:09]} Nxa6 {[%emt 0:00:10]} 9. h5 {[%emt 0:00:44]} h6 {[%emt 0:08:
03]} 10. Qa4 {[%emt 0:07:42]} Nab8 {[%emt 0:02:40]} 11. Be3 {[%emt 0:02:11]}
Qd7 {[%emt 0:04:06]} 12. Qd1 {[%emt 0:08:03]} f6 {[%emt 0:14:16]} 13. exf6 {
[%emt 0:08:34]} gxf6 {[%emt 0:00:23]} 14. Nh4 {[%emt 0:00:53]} cxd4 {[%emt 0:
12:36]} 15. cxd4 {[%emt 0:00:59]} Bb4+ {[%emt 0:02:07]} 16. Nc3 {[%emt 0:04:25]
} Bxc3+ {[%emt 0:06:01]} 17. bxc3 {[%emt 0:03:11]} Ne7 {[%emt 0:01:24]} 18. Qf3
{[%emt 0:02:18]} f5 {[%emt 0:13:13]} 19. g4 {[%emt 0:04:03]} Nbc6 {[%emt 0:02:
16]} 20. gxf5 {[%emt 0:00:48]} Nxf5 {[%emt 0:02:27]} 21. Nxf5 {[%emt 0:00:28]}
exf5 {[%emt 0:00:05]} 22. Rg1 {[%emt 0:00:35]} O-O-O {[%emt 0:00:57]} 23. Rg6 {
[%emt 0:01:46]} Rdg8 {[%emt 0:05:35]} 24. O-O-O {[%emt 0:01:47]} Ne7 {[%emt 0:
09:21]} 25. Rxh6 {[%emt 0:02:01]} Qa4 {[%emt 0:02:01]} 26. Rxh8 {[%emt 0:00:52]
} Rxh8 {[%emt 0:00:32]} 27. Bg5 {[%emt 0:00:44]} Nc6 {[%emt 0:01:26]} 28. Qxd5
{[%emt 0:01:17]} Kb7 {[%emt 0:00:46]} 29. h6 {[%emt 0:00:27]} Qa3+ {[%emt 0:00:
25]} 30. Kb1 {[%emt 0:01:00]} Qxc3 {[%emt 0:00:15]} 31. Rc1 {[%emt 0:00:25]}
Qb4+ {[%emt 0:00:39]} 32. Ka1 {[%emt 0:00:09]} Qxd4+ {[%emt 0:00:11]} 33. Qxd4
{[%emt 0:00:05]} Nxd4 {[%emt 0:00:05]} 34. Bf6 {[%emt 0:00:03]} Rxh6 {[%emt 0:
00:38]} 35. Bxd4 {[%emt 0:00:07]} Re6 {[%emt 0:01:03]} 36. f4 {[%emt 0:00:11]}
Re2 {[%emt 0:00:46]} 37. Kb1 {[%emt 0:00:45]} a5 {[%emt 0:00:26]} 38. Rc2 {
[%emt 0:00:28]} Re4 {[%emt 0:00:19]} 39. Be5 {[%emt 0:00:07]} a4 {[%emt 0:00:
42]} 40. a3 {[%emt 0:01:09]} b5 {[%emt 0:00:30]} 41. Rc7+ {[%emt 0:00:40]} Kb6
{[%emt 0:00:20]} 42. Rf7 {[%emt 0:00:10]} Kc5 {[%emt 0:02:38]} 43. Rxf5 {[%emt
0:01:37]} Kc4 {[%emt 0:00:09]} 44. Bd6 {[%emt 0:02:02]} 1-0

[Event "Lithuanian Chess League 2021"]
[Site "Various cities"]
[Date "2021.05.15"]
[Round "6.3"]
[White "Stremavicius, Pijus"]
[Black "Salna, Aleksandras"]
[Result "1-0"]
[WhiteElo "2214"]
[BlackElo "2125"]
[PlyCount "117"]
[TimeControl "90/40+30:0"]
[WhiteClock "0:29:52"]
[BlackClock "0:12:28"]

1. e4 {[%emt 0:00:02]} c5 {[%emt 0:00:06]} 2. Nf3 {[%emt 0:00:05]} Nc6 {[%emt
0:00:12]} 3. Bb5 {[%emt 0:00:07]} g6 {[%emt 0:00:07]} 4. O-O {[%emt 0:00:05]}
Bg7 {[%emt 0:00:04]} 5. Re1 {[%emt 0:00:04]} e5 {[%emt 0:00:33]} 6. Bxc6 {
[%emt 0:00:06]} dxc6 {[%emt 0:00:05]} 7. d3 {[%emt 0:00:05]} Qc7 {[%emt 0:00:
59]} 8. Be3 {[%emt 0:00:19]} b6 {[%emt 0:00:07]} 9. a3 {[%emt 0:00:05]} Nf6 {
[%emt 0:01:32]} 10. b4 {[%emt 0:00:41]} Ng4 {[%emt 0:00:19]} 11. Bd2 {[%emt 0:
14:57]} O-O {[%emt 0:06:30]} 12. bxc5 {[%emt 0:01:10]} bxc5 {[%emt 0:00:05]}
13. h3 {[%emt 0:01:29]} Nf6 {[%emt 0:00:31]} 14. Be3 {[%emt 0:09:10]} c4 {
[%emt 0:06:17]} 15. Nbd2 {[%emt 0:00:29]} cxd3 {[%emt 0:00:36]} 16. cxd3 {
[%emt 0:00:05]} Nh5 {[%emt 0:05:17]} 17. Qc2 {[%emt 0:02:03]} Rd8 {[%emt 0:03:
10]} 18. Nb3 {[%emt 0:01:12]} Nf4 {[%emt 0:03:29]} 19. d4 {[%emt 0:02:48]} exd4
{[%emt 0:08:39]} 20. Bxd4 {[%emt 0:00:53]} Bxd4 {[%emt 0:04:17]} 21. Nbxd4 {
[%emt 0:00:47]} c5 {[%emt 0:02:44]} 22. Ne2 {[%emt 0:27:56]} Nxe2+ {[%emt 0:02:
07]} 23. Rxe2 {[%emt 0:00:59]} Ba6 {[%emt 0:04:56]} 24. Re3 {[%emt 0:00:40]}
Rac8 {[%emt 0:02:06]} 25. Rc1 {[%emt 0:02:35]} Qe7 {[%emt 0:13:16]} 26. Qc3 {
[%emt 0:01:00]} Bb7 {[%emt 0:09:29]} 27. Qa5 {[%emt 0:04:56]} Ba8 {[%emt 0:02:
10]} 28. Nd2 {[%emt 0:02:36]} Rd4 {[%emt 0:01:33]} 29. f3 {[%emt 0:01:22]} Qd7
{[%emt 0:03:44]} 30. Nc4 {[%emt 0:01:40]} h5 {[%emt 0:06:16]} 31. Rec3 {[%emt
0:03:25]} Rd1+ {[%emt 0:02:16]} 32. Kh2 {[%emt 0:01:15]} Rxc1 {[%emt 0:02:12]}
33. Rxc1 {[%emt 0:00:06]} Bb7 {[%emt 0:02:38]} 34. Qxa7 {[%emt 0:01:45]} Qc7+ {
[%emt 0:03:30]} 35. Kg1 {[%emt 0:00:35]} Ra8 {[%emt 0:02:08]} 36. Qb6 {[%emt 0:
00:19]} Qxb6 {[%emt 0:00:24]} 37. Nxb6 {[%emt 0:00:02]} Rxa3 {[%emt 0:00:10]}
38. Rxc5 {[%emt 0:00:05]} Ra1+ {[%emt 0:01:06]} 39. Kf2 {[%emt 0:01:23]} Ra2+ {
[%emt 0:00:22]} 40. Kg1 {[%emt 0:01:58]} Ra1+ {[%emt 0:01:46]} 41. Kh2 {[%emt
0:00:08]} Ba6 {[%emt 0:07:55]} 42. h4 {[%emt 0:02:19]} Ra2 {[%emt 0:00:49]} 43.
Nd5 {[%emt 0:02:18]} Kg7 {[%emt 0:01:13]} 44. Kg3 {[%emt 0:00:17]} Bb7 {[%emt
0:00:58]} 45. Ne3 {[%emt 0:00:43]} Ra8 {[%emt 0:02:22]} 46. Kf4 {[%emt 0:00:23]
} Bc8 {[%emt 0:00:51]} 47. Nd5 {[%emt 0:02:00]} Bb7 {[%emt 0:01:17]} 48. Nb6 {
[%emt 0:01:41]} Ra2 {[%emt 0:00:15]} 49. g3 {[%emt 0:00:37]} Ba6 {[%emt 0:02:
26]} 50. Nd7 {[%emt 0:00:24]} Be2 {[%emt 0:00:59]} 51. Rc7 {[%emt 0:04:24]} f6
{[%emt 0:02:31]} 52. Nb6+ {[%emt 0:05:27]} Kh6 {[%emt 0:00:57]} 53. Nd5 {[%emt
0:01:55]} g5+ {[%emt 0:02:58]} 54. Kf5 {[%emt 0:02:49]} Bxf3 {[%emt 0:00:26]}
55. Nxf6 {[%emt 0:00:18]} Bxe4+ {[%emt 0:01:40]} 56. Nxe4 {[%emt 0:00:27]} gxh4
{[%emt 0:00:22]} 57. gxh4 {[%emt 0:00:09]} Rg2 {[%emt 0:00:27]} 58. Rc3 {[%emt
0:02:09]} Rg4 {[%emt 0:00:55]} 59. Rg3 {[%emt 0:00:13]} 1-0

[Event "Lithuanian Chess League 2021"]
[Site "Various cities"]
[Date "2021.05.15"]
[Round "6.4"]
[White "Eigminas, Kipras"]
[Black "Vaznonis, Vytautas"]
[Result "1/2-1/2"]
[WhiteElo "2095"]
[BlackElo "2382"]
[PlyCount "60"]
[TimeControl "90/40+30:0"]
[WhiteClock "0:51:09"]
[BlackClock "0:08:35"]

1. e4 {[%emt 0:08:15]} e6 {[%emt 0:00:14]} 2. d4 {[%emt 0:00:03]} d5 {[%emt 0:
00:08]} 3. Nc3 {[%emt 0:00:05]} Nf6 {[%emt 0:00:35]} 4. e5 {[%emt 0:00:04]}
Nfd7 {[%emt 0:00:09]} 5. f4 {[%emt 0:00:03]} c5 {[%emt 0:00:07]} 6. Nf3 {[%emt
0:00:03]} Nc6 {[%emt 0:00:12]} 7. Be3 {[%emt 0:00:04]} cxd4 {[%emt 0:00:49]} 8.
Nxd4 {[%emt 0:00:07]} Bc5 {[%emt 0:00:20]} 9. Qd2 {[%emt 0:00:04]} a6 {[%emt 0:
01:44]} 10. O-O-O {[%emt 0:00:07]} O-O {[%emt 0:00:08]} 11. Nb3 {[%emt 0:01:34]
} Bb4 {[%emt 0:04:01]} 12. a3 {[%emt 0:00:14]} Be7 {[%emt 0:00:39]} 13. Ne2 {
[%emt 0:01:34]} Qc7 {[%emt 0:13:28]} 14. h4 {[%emt 0:00:56]} b5 {[%emt 0:00:28]
} 15. h5 {[%emt 0:00:13]} Rb8 {[%emt 0:19:05]} 16. Ned4 {[%emt 0:10:48]} Nxd4 {
[%emt 0:00:17]} 17. Bxd4 {[%emt 0:00:05]} b4 {[%emt 0:06:58]} 18. a4 {[%emt 0:
00:09]} Bb7 {[%emt 0:02:54]} 19. Na1 {[%emt 0:15:15]} Qc6 {[%emt 0:07:56]} 20.
b3 {[%emt 0:00:46]} Nc5 {[%emt 0:02:37]} 21. Qe3 {[%emt 0:01:05]} Ne4 {[%emt 0:
01:43]} 22. Bd3 {[%emt 0:00:13]} Nc3 {[%emt 0:02:47]} 23. Rdf1 {[%emt 0:01:10]}
Rbc8 {[%emt 0:13:00]} 24. f5 {[%emt 0:00:26]} exf5 {[%emt 0:01:28]} 25. Bxf5 {
[%emt 0:01:58]} Rc7 {[%emt 0:01:01]} 26. e6 {[%emt 0:02:51]} Ne4 {[%emt 0:08:
42]} 27. exf7+ {[%emt 0:00:28]} Rxf7 {[%emt 0:00:13]} 28. Bxe4 {[%emt 0:00:20]}
Rxf1+ {[%emt 0:00:45]} 29. Rxf1 {[%emt 0:00:04]} dxe4 {[%emt 0:00:05]} 30. Qg3
{[%emt 0:03:41]} Bd8 {[%emt 0:05:56]} 1/2-1/2

[Event "Lithuanian Chess League 2021"]
[Site "Various cities"]
[Date "2021.05.15"]
[Round "6.5"]
[White "Butvilas, Aistis"]
[Black "Zozulia, Alexandr"]
[Result "1-0"]
[WhiteElo "2063"]
[BlackElo "2069"]
[PlyCount "99"]
[TimeControl "90/40+30:0"]
[WhiteClock "0:59:27"]
[BlackClock "0:31:34"]

1. d4 {[%emt 0:00:02]} e6 {[%emt 0:02:46]} 2. Nf3 {[%emt 0:01:47]} f5 {[%emt 0:
00:16]} 3. g3 {[%emt 0:00:56]} d5 {[%emt 0:00:49]} 4. Bg2 {[%emt 0:00:10]} Nf6
{[%emt 0:00:06]} 5. O-O {[%emt 0:00:12]} Bd6 {[%emt 0:00:44]} 6. c4 {[%emt 0:
00:13]} c6 {[%emt 0:00:06]} 7. Nc3 {[%emt 0:00:21]} O-O {[%emt 0:00:09]} 8. Qc2
{[%emt 0:00:06]} Ne4 {[%emt 0:06:36]} 9. Rb1 {[%emt 0:00:33]} a5 {[%emt 0:06:
23]} 10. a3 {[%emt 0:11:02]} Qe7 {[%emt 0:05:18]} 11. c5 {[%emt 0:03:36]} Bc7 {
[%emt 0:00:16]} 12. Bf4 {[%emt 0:00:03]} Bxf4 {[%emt 0:11:48]} 13. gxf4 {[%emt
0:00:06]} Nd7 {[%emt 0:00:03]} 14. b4 {[%emt 0:01:30]} axb4 {[%emt 0:00:28]}
15. axb4 {[%emt 0:00:02]} g5 {[%emt 0:02:00]} 16. Nxg5 {[%emt 0:05:02]} Nxg5 {
[%emt 0:00:04]} 17. fxg5 {[%emt 0:00:06]} Qxg5 {[%emt 0:00:09]} 18. f4 {[%emt
0:00:40]} Qh4 {[%emt 0:04:13]} 19. e3 {[%emt 0:08:14]} Nf6 {[%emt 0:01:54]} 20.
h3 {[%emt 0:03:58]} Kh8 {[%emt 0:01:27]} 21. Ra1 {[%emt 0:01:35]} Rxa1 {[%emt
0:07:56]} 22. Rxa1 {[%emt 0:00:02]} Rg8 {[%emt 0:00:07]} 23. Kf1 {[%emt 0:01:
00]} Qg3 {[%emt 0:01:14]} 24. Qf2 {[%emt 0:00:15]} Qh2 {[%emt 0:00:02]} 25. Qg1
{[%emt 0:01:17]} Qg3 {[%emt 0:00:36]} 26. Qf2 {[%emt 0:01:48]} Qh2 {[%emt 0:02:
00]} 27. Ra8 {[%emt 0:00:45]} Nh5 {[%emt 0:03:38]} 28. Ne2 {[%emt 0:00:57]} h6
{[%emt 0:07:37]} 29. Rb8 {[%emt 0:01:25]} Kh7 {[%emt 0:00:44]} 30. Qg1 {[%emt
0:03:04]} Ng3+ {[%emt 0:00:55]} 31. Ke1 {[%emt 0:00:50]} Qxg1+ {[%emt 0:00:06]}
32. Nxg1 {[%emt 0:00:02]} Ne4 {[%emt 0:03:28]} 33. Kf1 {[%emt 0:13:01]} Nc3 {
[%emt 0:03:23]} 34. Bf3 {[%emt 0:08:05]} Na2 {[%emt 0:04:55]} 35. Be2 {[%emt 0:
01:39]} Nxb4 {[%emt 0:00:30]} 36. Nf3 {[%emt 0:00:57]} Kg7 {[%emt 0:14:45]} 37.
Ne5 {[%emt 0:00:36]} Rd8 {[%emt 0:00:26]} 38. Ra8 {[%emt 0:00:53]} Rg8 {[%emt
0:02:58]} 39. Kf2 {[%emt 0:01:26]} Rf8 {[%emt 0:01:30]} 40. Ke1 {[%emt 0:02:58]
} Rg8 {[%emt 0:05:08]} 41. Kd2 {[%emt 0:00:24]} Re8 {[%emt 0:00:33]} 42. Kc3 {
[%emt 0:00:27]} Na6 {[%emt 0:00:02]} 43. Bxa6 {[%emt 0:00:07]} bxa6 {[%emt 0:
00:03]} 44. Nxc6 {[%emt 0:00:31]} Kf6 {[%emt 0:04:00]} 45. Na7 {[%emt 0:00:59]}
Bd7 {[%emt 0:00:11]} 46. Rxe8 {[%emt 0:00:07]} Bxe8 {[%emt 0:00:01]} 47. c6 {
[%emt 0:00:09]} Kg6 {[%emt 0:00:11]} 48. c7 {[%emt 0:00:34]} Bd7 {[%emt 0:00:
00]} 49. Kb4 {[%emt 0:01:11]} Kh5 {[%emt 0:00:53]} 50. Kc5 {[%emt 0:00:18]} 1-0

[Event "Lithuanian Chess League 2021"]
[Site "Various cities"]
[Date "2021.05.15"]
[Round "6.6"]
[White "Laurusas, Tomas"]
[Black "Klimciauskas, Domantas"]
[Result "1-0"]
[WhiteElo "2505"]
[BlackElo "2175"]
[PlyCount "71"]
[TimeControl "90/40+30:0"]
[WhiteClock "0:05:07"]
[BlackClock "0:07:03"]

1. Nf3 {[%emt 0:00:06]} g6 {[%emt 0:00:10]} 2. d4 {[%emt 0:02:29]} Bg7 {[%emt
0:00:08]} 3. e4 {[%emt 0:03:40]} d6 {[%emt 0:00:21]} 4. Nc3 {[%emt 0:01:06]}
Nf6 {[%emt 0:00:24]} 5. Be2 {[%emt 0:02:47]} O-O {[%emt 0:00:15]} 6. O-O {
[%emt 0:00:05]} e6 {[%emt 0:01:41]} 7. e5 {[%emt 0:03:00]} dxe5 {[%emt 0:03:42]
} 8. Nxe5 {[%emt 0:00:54]} Nbd7 {[%emt 0:02:26]} 9. Bg5 {[%emt 0:04:02]} Nxe5 {
[%emt 0:03:11]} 10. dxe5 {[%emt 0:00:45]} Qxd1 {[%emt 0:00:14]} 11. Raxd1 {
[%emt 0:00:09]} Nd7 {[%emt 0:00:11]} 12. f4 {[%emt 0:00:06]} a6 {[%emt 0:01:54]
} 13. Ne4 {[%emt 0:03:37]} Nb6 {[%emt 0:23:43]} 14. c4 {[%emt 0:16:17]} Bd7 {
[%emt 0:00:39]} 15. Nf6+ {[%emt 0:04:19]} Bxf6 {[%emt 0:00:09]} 16. Bxf6 {
[%emt 0:00:06]} Bc6 {[%emt 0:00:28]} 17. Rd4 {[%emt 0:10:23]} Nd7 {[%emt 0:06:
32]} 18. Be7 {[%emt 0:06:54]} Rfe8 {[%emt 0:00:33]} 19. Bh4 {[%emt 0:00:02]} h6
{[%emt 0:12:05]} 20. b4 {[%emt 0:05:21]} Nf8 {[%emt 0:06:40]} 21. Rc1 {[%emt 0:
00:46]} Nh7 {[%emt 0:01:06]} 22. Rcd1 {[%emt 0:10:31]} Kg7 {[%emt 0:00:45]} 23.
R1d3 {[%emt 0:00:10]} f6 {[%emt 0:12:25]} 24. Bf3 {[%emt 0:06:20]} g5 {[%emt 0:
04:17]} 25. exf6+ {[%emt 0:04:40]} Kxf6 {[%emt 0:00:15]} 26. fxg5+ {[%emt 0:00:
04]} Nxg5 {[%emt 0:01:59]} 27. Bxc6 {[%emt 0:00:52]} bxc6 {[%emt 0:00:04]} 28.
Rd7 {[%emt 0:00:24]} Rab8 {[%emt 0:05:30]} 29. Be1 {[%emt 0:05:33]} Rbc8 {
[%emt 0:03:23]} 30. h4 {[%emt 0:03:01]} Ne4 {[%emt 0:00:10]} 31. Rf3+ {[%emt 0:
02:51]} Ke5 {[%emt 0:00:55]} 32. Re3 {[%emt 0:00:34]} Rf8 {[%emt 0:03:16]} 33.
Bc3+ {[%emt 0:01:15]} Kf4 {[%emt 0:01:07]} 34. Rf3+ {[%emt 0:00:03]} Kg4 {
[%emt 0:00:08]} 35. Rg7+ {[%emt 0:00:05]} Kh5 {[%emt 0:00:12]} 36. g4+ {[%emt
0:00:07]} 1-0

[Event "Lithuanian Chess League 2021"]
[Site "Various cities"]
[Date "2021.05.15"]
[Round "6.7"]
[White "Juknis, Paulius"]
[Black "Pultinevicius, Paulius"]
[Result "1/2-1/2"]
[WhiteElo "2143"]
[BlackElo "2501"]
[PlyCount "148"]
[TimeControl "90/40+30:0"]
[WhiteClock "0:04:40"]
[BlackClock "0:04:49"]

1. e4 {[%emt 0:00:05]} c6 {[%emt 0:00:25]} 2. d4 {[%emt 0:00:27]} d5 {[%emt 0:
00:05]} 3. exd5 {[%emt 0:00:15]} cxd5 {[%emt 0:00:05]} 4. Bd3 {[%emt 0:00:06]}
Nc6 {[%emt 0:00:44]} 5. c3 {[%emt 0:00:14]} Qc7 {[%emt 0:00:05]} 6. Ne2 {[%emt
0:00:58]} Bg4 {[%emt 0:01:01]} 7. O-O {[%emt 0:00:46]} e6 {[%emt 0:00:46]} 8.
Qe1 {[%emt 0:00:33]} Bxe2 {[%emt 0:34:39]} 9. Qxe2 {[%emt 0:00:09]} Bd6 {[%emt
0:00:04]} 10. Qg4 {[%emt 0:04:48]} Kf8 {[%emt 0:00:28]} 11. Qh3 {[%emt 0:09:36]
} Nf6 {[%emt 0:05:53]} 12. Bg5 {[%emt 0:06:48]} Bf4 {[%emt 0:00:50]} 13. Qh4 {
[%emt 0:06:37]} Bxg5 {[%emt 0:00:07]} 14. Qxg5 {[%emt 0:00:02]} h6 {[%emt 0:02:
58]} 15. Qg3 {[%emt 0:01:44]} Qxg3 {[%emt 0:01:17]} 16. hxg3 {[%emt 0:01:25]}
Ke7 {[%emt 0:00:09]} 17. Nd2 {[%emt 0:05:11]} g5 {[%emt 0:00:10]} 18. f3 {
[%emt 0:02:23]} h5 {[%emt 0:03:13]} 19. Kf2 {[%emt 0:01:18]} Ne8 {[%emt 0:02:
07]} 20. Rh1 {[%emt 0:05:07]} Nd6 {[%emt 0:01:38]} 21. Rh3 {[%emt 0:06:10]} Rh6
{[%emt 0:01:13]} 22. Rah1 {[%emt 0:00:11]} Rah8 {[%emt 0:00:13]} 23. g4 {[%emt
0:09:15]} h4 {[%emt 0:00:06]} 24. g3 {[%emt 0:02:48]} hxg3+ {[%emt 0:01:36]}
25. Kxg3 {[%emt 0:00:07]} Rxh3+ {[%emt 0:00:05]} 26. Rxh3 {[%emt 0:00:07]}
Rxh3+ {[%emt 0:03:30]} 27. Kxh3 {[%emt 0:00:06]} f6 {[%emt 0:09:44]} 28. Kg3 {
[%emt 0:02:14]} e5 {[%emt 0:01:31]} 29. dxe5 {[%emt 0:00:42]} fxe5 {[%emt 0:00:
05]} 30. Kf2 {[%emt 0:01:38]} b5 {[%emt 0:03:15]} 31. Ke2 {[%emt 0:19:41]} Nd8
{[%emt 0:03:42]} 32. Nf1 {[%emt 0:01:01]} Ne6 {[%emt 0:00:59]} 33. Ne3 {[%emt
0:00:49]} Nf4+ {[%emt 0:00:11]} 34. Kd2 {[%emt 0:00:07]} a5 {[%emt 0:01:42]}
35. Bf1 {[%emt 0:05:04]} Ke6 {[%emt 0:04:40]} 36. Nc2 {[%emt 0:01:26]} Kd7 {
[%emt 0:00:50]} 37. Ne3 {[%emt 0:05:06]} Kc6 {[%emt 0:00:33]} 38. a3 {[%emt 0:
01:34]} a4 {[%emt 0:02:36]} 39. Bd3 {[%emt 0:01:54]} Kc5 {[%emt 0:01:23]} 40.
Bf1 {[%emt 0:01:06]} Nc4+ {[%emt 0:07:49]} 41. Bxc4 {[%emt 0:00:18]} bxc4 {
[%emt 0:00:31]} 42. Nd1 {[%emt 0:00:39]} Nd3 {[%emt 0:01:29]} 43. Ke3 {[%emt 0:
01:10]} Kd6 {[%emt 0:01:06]} 44. Ke2 {[%emt 0:01:05]} d4 {[%emt 0:06:45]} 45.
Kd2 {[%emt 0:00:50]} Kc5 {[%emt 0:03:20]} 46. Ke2 {[%emt 0:00:30]} Kc6 {[%emt
0:03:12]} 47. Kd2 {[%emt 0:00:41]} Kd5 {[%emt 0:01:36]} 48. Ke2 {[%emt 0:00:19]
} Nf4+ {[%emt 0:06:27]} 49. Kd2 {[%emt 0:00:28]} Nh3 {[%emt 0:04:33]} 50. Ke1 {
[%emt 0:06:25]} Kc6 {[%emt 0:01:22]} 51. Ke2 {[%emt 0:00:37]} Kd6 {[%emt 0:01:
07]} 52. Ke1 {[%emt 0:00:18]} Kd5 {[%emt 0:00:13]} 53. Ke2 {[%emt 0:00:09]}
Nf4+ {[%emt 0:00:05]} 54. Kd2 {[%emt 0:00:33]} Nd3 {[%emt 0:00:05]} 55. Ke2 {
[%emt 0:00:15]} e4 {[%emt 0:00:04]} 56. fxe4+ {[%emt 0:00:28]} Kxe4 {[%emt 0:
00:06]} 57. Kd2 {[%emt 0:03:27]} Kd5 {[%emt 0:04:00]} 58. Kc2 {[%emt 0:05:55]}
Ke5 {[%emt 0:05:05]} 59. cxd4+ {[%emt 0:01:48]} Kxd4 {[%emt 0:00:09]} 60. Nc3 {
[%emt 0:00:18]} Ne5 {[%emt 0:00:30]} 61. Nxa4 {[%emt 0:00:51]} Nxg4 {[%emt 0:
00:07]} 62. Nc3 {[%emt 0:03:36]} Nf6 {[%emt 0:01:03]} 63. a4 {[%emt 0:02:08]}
Nd5 {[%emt 0:00:41]} 64. Ne2+ {[%emt 0:02:25]} Ke3 {[%emt 0:00:10]} 65. Ng3 {
[%emt 0:00:23]} g4 {[%emt 0:02:13]} 66. a5 {[%emt 0:00:30]} Kd4 {[%emt 0:00:07]
} 67. Kd2 {[%emt 0:01:56]} Nb4 {[%emt 0:01:36]} 68. Ke2 {[%emt 0:02:06]} Kc5 {
[%emt 0:00:18]} 69. Nf5 {[%emt 0:00:41]} Nc6 {[%emt 0:00:32]} 70. Ne3 {[%emt 0:
00:26]} Ne5 {[%emt 0:00:41]} 71. Kf2 {[%emt 0:01:27]} Kb5 {[%emt 0:00:53]} 72.
Kg3 {[%emt 0:00:15]} Kxa5 {[%emt 0:00:05]} 73. Nxc4+ {[%emt 0:00:05]} Nxc4 {
[%emt 0:00:05]} 74. Kxg4 {[%emt 0:00:02]} Nxb2 {[%emt 0:00:06]} 1/2-1/2